{"text_format":"3","workbook":"xlsx","n_sheets":4,"sheets":["1","2","3","4"],"not_rendered":{"defined_names":4},"read":"whole","date_system":"1900"}

{"sheet":"1","index":0,"n_rows":17,"n_cols":4,"rows_kept":17,"merged":[[1,0,1,3]]}
["附表15"]
["2023年高新区一般公共预算收支平衡调整情况表"]
[{"$nulls":3},"单位：万元"]
["项      目","年初预算数","预算调整数","调整后预算数"]
["一、一般公共预算总收入",{"$f":"SUM(B6:B12)","v":228356},{"$f":"SUM(C6:C12)","v":-114},{"$f":"SUM(D6:D12)","v":228242}]
["其中：本级收入",135450,null,{"$f":"B6+C6","v":135450}]
["上级税收返还收入",-1065,0,-1065]
["上级转移支付收入",47159,-114,47045]
["调入资金",31191,null,31191]
["调入预算稳定调节基金",11000,null,11000]
["地方政府一般债务转贷收入",null,null,0]
["上年结余收入",4621,null,4621]
["二、一般公共预算总支出",{"$f":"SUM(B14:B17)","v":228356},{"$f":"SUM(C14:C17)","v":-114},{"$f":"SUM(D14:D17)","v":228242}]
["其中：本级支出",123635,3393,{"$f":"B14+C14","v":127028}]
["上解上级支出",104721,-3507,{"$f":"B15+C15","v":101214}]
["安排预算稳定调节基金"]
["调出资金",null,null,{"$f":"B17+C17","v":0}]

{"sheet":"2","index":1,"n_rows":58,"n_cols":4,"rows_kept":58,"merged":[[1,0,1,3],[4,0,4,1],[5,0,5,1],[41,0,41,1]]}
["附表16"]
["2023年高新区预算项目调整情况表（一般公共预算）"]
[{"$nulls":3},"单位：万元"]
["序号","项目名称","调整金额","调整理由"]
["总计",null,{"$f":"C6-C42","v":3393}]
["一、调增项目",null,{"$f":"SUBTOTAL(9,C7:C41)","v":19568}]
[1,"高新区市政基础设施PPP项目2023年度政府付费",6765,"由于基金短收，结合PPP付费有关要求，拟通过一般预算安排。"]
[2,"人才发展资金",2000,"为落实省市人才发展政策，打造最优人才政策环境，需安排资金2000万元，助推高新区人才发展。"]
[3,"项目扶持资金",4600,"为加快“两区三高地”建设，安排资金4600万元，统筹用于中关村机器人产业、半导体封装服务平台等项目扶持。"]
[4,"鼓励优秀跨境电商企业奖励",100,"依据《唐山高新区企业培育壮大行动实施方案》，给予优秀跨境电商企业政策奖励。"]
[5,"机器人产业发展资金",40,"统筹用于高新区机器人产业发展规划，拍摄制作唐山机器人产业宣传片、机器人应用场景视频以及机器人产业支持政策宣传等。"]
[6,"网格化建设及维稳经费",200,"统筹用于全区网格化建设及维护社会稳定等。"]
[7,"工程造价咨询评审费、资产评估、审计及一般债券付息资金",250,"1.依据《唐山市财政局关于进一步规范财政投资管理及评审工作有关事项的通知》，对政府投资超1000万元项目进行复核，需安排工程造价咨询评审费100万元。\n2.上半年一般债券再融资15600万元，调整为半年付息，需安排债券付息及服务费资金90万元。\n3.审计、资产评估及律师服务费等60万元。"]
[8,"非涉密安可替代资金",78,"按照全市安可替代工作有关要求，安排资金78万元，统筹用于非涉密安可替代工作。"]
[9,"村级组织办公经费",26,"按照（冀组发〔2018〕14号）要求，安排每个村0.5万元村级组织办公经费，三女河需7.5万、老庄子镇8.5万、街道办事4.5万、庆北办事处5.5万元。"]
[10,"老年大学综合运转及火炬大厦附楼改造费用",158,"包括：1.老年大学运转经费47万元；管委会综合运转经费15万元；3.火炬大厦附楼一层改造及设施维护费用78万元；4.火炬大厦及附楼会议室视频设备更新及维护15万元；5.智慧讲解机器人服务费3万元。"]
[11,"文化宣传、网络舆情服务及12345政务服务便民热线经费",231,"包括：1.文化宣传经费150万元，统筹用于文化宣传工作；2.网络舆情分析研判服务费30万元；3.12345政务服务便民热线经费51万元。"]
[12,"税务征管经费",170,"统筹用于保障税务部门征管经费，包括：地方承担的人员经费、网络改造、值班室改造及税务自助终端、劳务费补助及税务征缴服务经费等。"]
[13,"公交运营补贴及灾害防御指挥体系建设等资金",115,"包括1.京唐智慧港区域公交运营补贴88万元。2.水旱灾害防御指挥体系建设费7.35万元；3.起重机械第三方检测费5万元；4.油葵示范种植项目资金15万元。"]
[14,"新建配套工程项目",1140,"为保障相关配套工程顺利实施，按总投资的30%安排工程进度款及前期费用1140万元。其中：1.高新区老庄子镇水厂1路及水厂2路新建工程270万元；2.高新区首佳养老及田园牧歌项目配套污水管网新建工程570万元；3.高新区横跨机场路等三处给水和污水顶管工程270万元；4.君德城上城配套污水提升泵站新建工程30万元。"]
[15,"劳动保障、人事档案管理及党建资金",194,"1.党员干部教育经费40万元；2.基层党建工作经费110万元：含基层党组织全面创A奖补100万元；创建非公党建示范区经费10万元。3.按照省委组织部要求，农村、社区级“两新”组织非在职党员档案由县级集中统一管理，需安排组织人事档案管理资金10万元；4.劳动保障监察及仲裁专项资金23万元；5.就业见习岗专项经费11万元。"]
[16,"纪检监察工作经费",26,"统筹用于纪检监察办案及教育整顿、办公设备购置等。"]
[17,"经济普查、企业擂台赛及金融工作经费",70,"1.高新区第五次全国经济普查经费40万元；2.企业擂台赛20万元；3.金融工作经费10万元。"]
[18,"招商及开办经费",120,"包括1.招商经费100万元，统筹用于投促局招商引资工作；2.开办费20万元，用于保障新增预算单位运转。"]
[19,"征兵工作经费",30,"2023年征兵工作为“两征两退”，征兵体检上站人数增多，且项目增多，加之训练服装更换、增加督导员通信费等，需安排相关资金。"]
[20,"行政审批运转及业务经费",178,"1.按照（唐政字〔2022〕79号）、（唐政字〔2023〕19号）等文件要求，增加节能评估费用、社会稳定风险性评价、水土保持评估及水资源论证合计80万元。\n2.根据《企业投资项目核准和备案管理办法》等文件要求，政府投资项目可研报告、初设、社稳、节能审查等需要审批部门委托第三方进行评估，需安排项目评估评审、环评等费用43万元：。\n3.按照全省社会信用体系建设县级试点工作要求，高新区需加紧落实试点建设任务，完成省级信用示范城市县级试点创建工作，需经费24万元。\n4.按照《政府采购领域公开招标项目全面实施“双盲”评审工作方案》的通知要求，推进评审专家“盲抽”“盲评”，需进行软硬件配套升级和场地改造，安排资金21万元。\n5.改造提升现有便民服务设施，维修维护办公场所设备，组织开展自助服务、免费复印打印等工作，安排大厅运行经费10万元。"]
[21,"李各庄河道治理及社区经费",186,"包括：1.为应对李各庄河道汛期防护，租用7台排涝水泵以备应急排涝，需要租金46万元；2.对李各庄河道全段进行清淤，安排资金110万元；3.安排社区经费30万元。"]
[22,"耕地占用税及卫片执法资金",211,"1.依据《中华人民共和国耕地占用税法实施办法》及本年收储计划，需安排耕地占用税200万元。\n2.卫片执法资金11万元。"]
[23,"设备维修保养及政法维稳经费",292,"1.雪亮工程设备维修和保养费174万元，涉及点位1090（一期680点，二期343点，村居67点）；2.政法及信访维稳经费118万元，统筹用全区政法工作及信访维稳等。"]
[24,"孵化器维护费",50,"为保障创业中心孵化器正常运转，需安排消防系统、特种设备维修维护、外墙修复等经费。"]
[25,"公共安全建设资金",601,"1.暑期警卫经费85万元，其中公安分局55万元、机场公安分局30万元；2.机场分局共建立5个护路值守点，铁路护路值守点费用30万元；3.提升全域感知能力系统建设、派出所改造及训练场建设、视频监控维护费等费用350万元；4.购置远程可视一键报警系统及社区警务室“一窗通办”相关设备，安排公安业务经费48万元；5.网格化公安管理装备购置资金27万元。包括庆南道派出所网格嵌入勤务指挥室等基础设施改造以及为下沉警力配备对讲机、执法记录仪、单警装备等；6.辅警被装购置经费28.6万元。2023年新招录辅警95名，需警用服装及单警装备；7.网络舆情管理服务费调增10万元；8.跨部门涉案财物服务费22.4万元。"]
[26,"文明城市创建完善交通设施资金",46,"用于新增施划停车泊位、道路标线、道路交通标志、消防通道标识以及清除部分不合格标志标线等。"]
[27,"法检零星工程尾款法检办公楼租赁评估费",6,"1.法检办公楼消防泵房采暖、老庄子法庭旱厕改造、屋顶防水工程尾款。\n2.法检办公楼租约到期，检法两院委托评估咨询公司对区域范围内符合条件的房产租金价格进行评估，产生评估费2万元。"]
[28,"消防安全资金",30,"1.推广独立式烟感火灾探测报警器15万元。为进一步加强和改进消防工作，保持全区消防安全形势持续平稳，需推广安装独立式烟感火灾探测报警器400个，单价为375元，需安排相关资金。\n2.消防安全监督检查及教育经费15万元。包括重点区域、重点人群的教育培训，消防监督检查等。"]
[29,"第三方审计资金",200,"用于新城子平改项目跟踪审计和工程预决算审计以及马家屯村平改楼项目回迁区竣工决算审计等。"]
[30,"环保专项经费",200,"统筹用于全区环保治理，包括高新区空气质量乡镇站和环境检测无人机建设等。"]
[31,"义务教育资金",102,"1.义务教育保障机制（调标）7万元：按照唐山市财政局、唐山市教育局《关于下达2023年城乡义务教育中央补助经费预算的通知》（唐财教[2023]26号)文件要求，从2023年春季学期起提高义务教育学校生均经费基准定额，需追加资金7万元。\n2.义务教育免费学生装79万元：按照唐山市教育局、唐山市财政局《唐山市义务教育免费学生装实施方案》等要求，自2022年秋季学期开始，为我区义务教育新生免费发放春秀装和夏装两套学生装，标准为中学生300元/生，小学生280元/生。\n3.2023年中考考试费用10万元。\n4.教师春节慰问追加资金6万元。"]
[32,"社会事务经费",98,"包括：1.滑冰馆试运营期间水电费47.5万元；2.创建卫生城市及迎检工作经费20万元；3.为做好退役军人信访稳定工作，增加信访维稳经费15万元。\n4.医保政策宣传及系统维护经费14.5万元：5.新增人员运转经费1万元。"]
[33,"困难群众救助及优抚资金",205,"1.根据《唐山市民政局 唐山市财政局关于调整2023年城乡居民最低生活保障标准的通知》，农村低保需追加资金：456*88*4=16.1万元；城镇低保需追加资金：215*4*108=9.3万元；农村特困需追加资金：152*4*70=4.3万元；城市特困：12*74*4=0.4万元。\n2.优抚经费175万元，包括：优抚抚恤金、生活补助缺口149万元；优抚对象医疗补助资金缺口26万元。"]
[34,"一老一幼服务资金",194,"根据《唐山市“一老一幼”服务提质升级十八条措施》要求，特殊困难老人探访关爱服务资金80万元，其中承担服务主体奖补5万/家；低保特困人员关爱手环500元/个*900人、高龄补贴共需追加资金80.5万元、老年助餐食堂共需资金15万元、提高政府购买居家养老服务补贴提标所需资金为3.75万元、敬老院护理床位建设所需资金：1200*60=7.2万元、家庭床位入户评估、验收需资金2.12万元、困境儿童探访关爱服务需财政每年安排资金5万元。"]
[35,"学校装备及改造提升等资金",656,"1.高新区实验小学开学生均经费及装备资金228万元：2023年9-12月生均经费15万元、装备需资金720万元，本年安排213万元；2.4所学校（五十九中、老庄子中心、詹官屯小学、瓦房庄小学）操场改造需资金335万元，教学仪器装备85万元，合计420万元。3.三所幼儿园9-12月生均经费：8万元。"]
["二、调减项目",null,{"$f":"SUBTOTAL(9,C43:C58)","v":16175}]
["（一）","未实施项目调减",{"$f":"SUBTOTAL(9,C44:C45)","v":295}]
[1,"环保指挥平台建设",75,"项目不再实施，按照绩效管理有关要求，建议调减相关经费。"]
[2,"多功能抑尘车购置及运行经费",220,"项目不再实施，按照绩效管理有关要求，建议调减相关经费。"]
["（二）","当年已完成项目调减",{"$f":"SUBTOTAL(9,C47:C50)","v":407}]
[1,"百川房屋租赁费",88,"项目已执行完成，按照绩效管理有关要求，建议调减相关经费。"]
[2,"医疗保险资金",100,"执行中实际补助人数与年初预算存在差异，根据项目实际需求及绩效管理要求，调减相关经费。"]
[3,"学校维修资金",27,"项目已执行完成，按照绩效管理有关要求，建议调减相关经费。"]
[4,"雪亮工程服务费",192,"2022至2023年度，雪亮工程运行维护服务费项目已实施完成，根据绩效管理有关要求，调减剩余资金。"]
["（三）","根据项目进展情况调减",{"$f":"SUBTOTAL(9,C52:C56)","v":13370}]
[1,"气代煤电代煤区级补贴",300,"根据项目实施情况和绩效管理有关要求，建议调减相关经费。"]
[2,"道路挖掘补偿款",70,"根据项目实施情况和绩效管理有关要求，建议调减相关经费。"]
[3,"平台注资",5000,"根据项目实施情况和绩效管理有关要求，建议调减相关经费。"]
[4,"产业引导基金注资",6000,"根据项目实施情况和绩效管理有关要求，建议调减相关经费。"]
[5,"创投基金注资",2000,"根据项目实施情况和绩效管理有关要求，建议调减相关经费。"]
["（四）","调减基本支出",{"$f":"SUBTOTAL(9,C58)","v":2103}]
[1,"人员预留",2103,"根据预算执行情况予以调减。"]

{"sheet":"3","index":2,"n_rows":24,"n_cols":8,"rows_kept":24,"merged":[[1,0,1,7],[3,0,3,3],[3,4,3,7]]}
["附表17"]
["2023年高新区政府性基金预算收支平衡调整情况表"]
[{"$nulls":7},"单位：万元"]
["收        入",{"$nulls":3},"支        出"]
["项      目","年初预算数","预算调整数","调整后预算数","项      目","年初预算数","预算调整数","调整后预算数"]
["1.国有土地收益基金收入",null,null,{"$f":"B6+C6","v":0},"1.科学技术支出",null,null,{"$f":"F6+G6","v":0}]
["2.农业土地开发资金收入",622,-443,{"$f":"B7+C7","v":179},"2.文化旅游体育与传媒支出",6,null,{"$f":"F7+G7","v":6}]
["3.国有土地使用权出让收入",82285,-51405,30880,"3.社会保障和就业支出",124,null,124]
["4.城市基础设施配套费收入",null,null,0,"4.节能环保支出",null,null,0]
["5.大中型水库移民后期扶持基金收入",null,null,0,"5.城乡社区支出",88144,-34312,53832]
["6.国家电影事业发展专项资金收入",null,null,0,"6.农林水支出",null,null,0]
["7.污水处理费收入",null,null,0,"7.交通运输支出",null,null,0]
["8.彩票公益金收入",null,null,0,"8.资源勘探信息等支出",null,null,0]
["9.彩票销售机构业务费用",null,null,0,"9.金融支出",null,null,0]
["10.民航发展基金收入",null,null,0,"10.其他支出",10602,63400,74002]
["11.旅游发展基金收入",null,null,0,"11.债务还本支出",null,null,0]
["12.其他政府性基金收入",null,1345,1345,"12.债务付息支出",4532,null,4532]
["13.专项债务对应项目专项收入",null,null,0,"13.债务发行费用支出",75,null,75]
["本级收入",{"$f":"SUM(B6:B18)","v":82907},{"$f":"SUM(C6:C18)","v":-50503},{"$f":"SUM(D6:D18)","v":32404},"本级支出",{"$f":"SUM(F6:F18)","v":103483},{"$f":"SUM(G6:G18)","v":29088},{"$f":"SUM(H6:H18)","v":132571}]
["1.上级转移支付",1260,null,1260,"1.调出资金",6191,-6191,0]
["2.地方政府专项债务转贷收入",null,63400,63400,"2.年终结余",null,null,0]
["3.调入资金"]
["4.动用上年结余",25507,10000,35507,{"$nulls":3},0]
["收入总计",{"$f":"SUM(B19:B23)","v":109674},{"$f":"SUM(C19:C23)","v":22897},{"$f":"SUM(D19:D23)","v":132571},"支出总计",{"$f":"SUM(F19:F23)","v":109674},{"$f":"SUM(G19:G23)","v":22897},{"$f":"SUM(H19:H23)","v":132571}]

{"sheet":"4","index":3,"n_rows":105,"n_cols":4,"rows_kept":105,"merged":[[1,0,1,3],[4,0,4,1],[7,3,11,3],[12,3,13,3]]}
["附表18"]
["2023年高新区预算项目调整情况表（政府性基金预算）"]
[{"$nulls":3},"单位：万元"]
["序号","项目名称","调整金额","调整理由"]
["总计",null,{"$f":"C6-C22","v":22897}]
["一","调增项目",{"$f":"SUBTOTAL(9,C7:C21)","v":88410}]
["（一）","地方政府债券转贷收入安排支出",{"$f":"SUBTOTAL(9,C8:C14)","v":63400}]
[1,"高新区城市安全运行监测预警平台项目",16400,"《唐山市财政局关于下达2023年第二批新增政府债券资金的通知》（唐财债〔2023〕4号）"]
[2,"唐山高新区京唐智慧港产业园供水配套基础设施项目",1700]
[3,"唐山高新区人居环境整治项目",9300]
[4,"唐山高新区京唐智慧港污水管道（北片区至通州道）、经十六路（机场路至通州道）配套市政设施及110KV变电站进线电力隧道项目",6000]
[5,"唐山高新区京唐智慧港园区基础配套设施",6000]
[6,"东北亚产业配套基地项目",8000,"《唐山市财政局关于下达2023年第五批新增政府债券资金的通知》（唐财债〔2023〕9号）"]
[7,"唐山高新区京津冀科技成果转化中心",16000]
["（二）","基础设施配套费安排",{"$f":"SUBTOTAL(9,C16:C16)","v":1199}]
[1,"城建项目资金",1199,"由于土地出让金短收，其中1199万元通过基础设施配套费收入安排。"]
["（三）","土地出让金安排",{"$f":"SUBTOTAL(9,C18:C19)","v":22466}]
[1,"城中村改造项目成本返还",22419,"按照相关政策及城中村改造项目土地出让计划，需增加成本返还资金22419万元。"]
[2,"绿化租地费",47,"按照合同约定，需支付村民绿化租地费。"]
["（四）","其他政府性基金安排",{"$f":"SUBTOTAL(9,C21:C21)","v":1345}]
[1,"专项债券付息",1345,"土地出让金短收，通过其他政府性基金收入安排专项债券付息。"]
["二","调减项目",{"$f":"SUBTOTAL(9,C23:C105)","v":65513}]
["（一）","基础设施配套费调减",{"$f":"SUBTOTAL(9,C24:C25)","v":1096}]
[1,"规划编制及招标代理费",96,"1.根据项目实施进度调减246万元。包括：唐山高新区控制性详细规划，高新区国土空间生态修复规划，控规动态维护、规划论证、咨询等项目。\n2.调增高新区总体城市更新专项规划及重点地区城市设计项目进度款150万元。"]
[2,"调出资金",1000,"由于基金短收，调减调出基础设施配套费1000万元，用于城建项目支出。"]
["（二）","农业土地开发资金",{"$f":"SUBTOTAL(9,C27:C27)","v":443}]
[1,"调出资金",443,"由于农业土地开发资金短收，调减调出资金。"]
["（三）","土地出让金调减",{"$f":"SUBTOTAL(9,C29:C105)","v":63974}]
[1,"唐山高新区市政基础设施PPP项目2023年度政府付费及绩效评价咨询服务费",6765,"由于基金短收，结合PPP付费有关要求，拟通过一般预算安排。"]
[2,"调出资金",{"$f":"6191-1443","v":4748},"由于土地出让金短收，调减调出资金4748万元。"]
[3,"征地拆迁补偿款",17285,"根据项目实施情况及全年计划，调减部分资金。"]
[4,"委托补充耕地费",5500,"根据项目实施情况及全年计划，调减部分资金。"]
[5,"被征地农民社会保障费",3882,"根据项目实施情况及全年计划，调减部分资金。"]
[6,"城建项目资金",6446,"1.根据项目实施情况及全年计划，调减城建项目资金2769万元，其中1199万元通过基础设施配套费安排。\n2.根据基金收入情况及项目进度，2023年区级城建项目调减3677万元。"]
[7,"专项债券付息",1345,"由于土地出让金短收，调减1345万元，通过其他政府性基金收入安排。"]
[8,"高新区滑冰馆项目",975,"根据项目实施情况及全年计划，调减部分资金。"]
[9,"建设消防救援指挥中心",450,"根据项目实施情况及全年计划，调减部分资金。"]
[10,"高新区庆丰道（规划道路11—学院路）给排水工程费及前期费",152,"根据项目实施情况及全年计划，调减部分资金。"]
[11,"2022年高新区主城区智慧公厕采购项目",600,"根据基金收入情况及项目进度，调减相关资金。"]
[12,"京唐智慧港经十八路下穿京唐铁路管线及道路工程费及前期费",170,"根据基金收入情况及项目进度，调减相关资金。"]
[13,"京唐智慧港经四路下穿京唐铁路管线及道路工程费及前期费",500,"根据基金收入情况及项目进度，调减相关资金。"]
[14,"高新区北安道（卫国路-水机路东侧）输水管线工程费及前期费",900,"根据基金收入情况及项目进度，调减相关资金。"]
[15,"2021年高新区老旧小区自来水管网改造工程费及前期费",1000,"根据基金收入情况及项目进度，调减相关资金。"]
[16,"卫国路（北安道-庆北道）道路工程",1600,"根据基金收入情况及项目进度，调减相关资金。"]
[17,"北安道（卫国路—建设北路）三水一路及路灯工程",400,"根据基金收入情况及项目进度，调减相关资金。"]
[18,"科维街（星河东道-建设路）新建工程",50,"根据基金收入情况及项目进度，调减相关资金。"]
[19,"京唐智慧港新建路灯箱变电源、高压线迁改工程",16,"根据基金收入情况及项目进度，调减相关资金。"]
[20,"庆南道（龙泽北路-河茵路）三水一路及路灯工程",85,"根据基金收入情况及项目进度，调减相关资金。"]
[21,"高新区京唐智慧港经十五路（纬一路—纬三路）工程费",9,"根据基金收入情况及项目进度，调减相关资金。"]
[22,"高新区京唐智慧港纬三路（经十六路—经十八路）新建工程费及前期费",720,"根据基金收入情况及项目进度，调减相关资金。"]
[23,"高新区创新大道（学院路-卫国路）新建工程费及前期费",224,"根据基金收入情况及项目进度，调减相关资金。"]
[24,"高新区创新北道（学院路-卫国路）新建工程费及前期费",480,"根据基金收入情况及项目进度，调减相关资金。"]
[25,"高新区规划道路7（庆丰道—北安道）新建工程费及前期费",384,"根据基金收入情况及项目进度，调减相关资金。"]
[26,"高新区新科街（卫国路-华岩路）新建工程费及前期费",320,"根据基金收入情况及项目进度，调减相关资金。"]
[27,"陈家庄村北和沙雾庄村东临时道路",154,"根据基金收入情况及项目进度，调减相关资金。"]
[28,"2021年、2022年高新区农村房屋抗震改造工作及房屋安全鉴定费",274,"根据基金收入情况及项目进度，调减相关资金。"]
[29,"电代煤工程款及前期费",500,"根据基金收入情况及项目进度，调减相关资金。"]
[30,"高新中学建设资金",1000,"根据基金收入情况及项目进度，调减相关资金。"]
[31,"2019年高新区游园、口袋公园改造工程",50,"根据基金收入情况及项目进度，调减相关资金。"]
[32,"2019年唐山市一街一景增绿工程",159,"根据基金收入情况及项目进度，调减相关资金。"]
[33,"2019年唐山市二环路绿化工程",300,"根据基金收入情况及项目进度，调减相关资金。"]
[34,"学院路（大庆道-庆丰道）两侧绿化景观建设工程",140,"根据基金收入情况及项目进度，调减相关资金。"]
[35,"火炬路（庆北道-规划道路3）等5条道路绿化景观建设工程",90,"根据基金收入情况及项目进度，调减相关资金。"]
[36,"高新区京唐智慧港纬六路（经二路—经十二路）新建绿化工程费及前期费",95,"根据基金收入情况及项目进度，调减相关资金。"]
[37,"高新道（太原路-龙泽路）绿化带外两侧搭建围挡项目",47,"根据基金收入情况及项目进度，调减相关资金。"]
[38,"规划道路3(建设路-龙泽路）绿化工程及前期费",100,"根据基金收入情况及项目进度，调减相关资金。"]
[39,"学院路（庆丰道-北安道）两侧绿化景观建设工程一标",150,"根据基金收入情况及项目进度，调减相关资金。"]
[40,"龙泽路（长宁道-大庆道）两侧绿化景观提升工程",65,"根据基金收入情况及项目进度，调减相关资金。"]
[41,"卫国路（庆北道-大庆道）绿化工程及前期费用",40,"根据基金收入情况及项目进度，调减相关资金。"]
[42,"李各庄河（上游段）景观道路工程及前期费",80,"根据基金收入情况及项目进度，调减相关资金。"]
[43,"李各庄河（庆北道-庆丰道）河道治理及绿化提升改造工程及前期费",170,"根据基金收入情况及项目进度，调减相关资金。"]
[44,"建党100周年绿雕工程",11,"根据基金收入情况及项目进度，调减相关资金。"]
[45,"清华道、荣华道、龙富南道等道路提升改造工程及前期费",70,"根据基金收入情况及项目进度，调减相关资金。"]
[46,"高新区卫国北路（大庆道-庆北道）东侧林荫停车场新建工程及前期费",130,"根据基金收入情况及项目进度，调减相关资金。"]
[47,"学院路（庆北道-庆丰道）东侧绿地提升改造工程及前期费用",108,"根据基金收入情况及项目进度，调减相关资金。"]
[48,"高新区内绿地黄土裸露补植及龙富南道与华岩路交叉口口袋公园工程及前期费用",168,"根据基金收入情况及项目进度，调减相关资金。"]
[49,"高新区京唐智慧港建成道路外跨绿化新建工程及前期费用",105,"根据基金收入情况及项目进度，调减相关资金。"]
[50,"北安道（建设路—火炬路）新建绿化工程费及前期费",84,"根据基金收入情况及项目进度，调减相关资金。"]
[51,"2021年益民园小区提升改造项目",130,"根据基金收入情况及项目进度，调减相关资金。"]
[52,"2019年高新区背街小巷提升整治工程",200,"根据基金收入情况及项目进度，调减相关资金。"]
[53,"2021年高新区新景路提升改造工程",30,"根据基金收入情况及项目进度，调减相关资金。"]
[54,"高新区已完（竣）工道路交通设施工程（京唐智慧港片区）工程费及前期费",340,"根据基金收入情况及项目进度，调减相关资金。"]
[55,"高新区主城区老旧便道翻修工程",83,"根据基金收入情况及项目进度，调减相关资金。"]
[56,"高新区已完（竣）工道路交通设施工程（中心区）工程费及前期费",400,"根据基金收入情况及项目进度，调减相关资金。"]
[57,"2021年高新区龙王庙龙康西楼供水管网改造工程费及前期费",100,"根据基金收入情况及项目进度，调减相关资金。"]
[58,"高新区惠民工程—滑冰馆周边林荫停车场工程费及前期费",25,"根据基金收入情况及项目进度，调减相关资金。"]
[59,"庆北道（学院路—卫国路）绿化工程费及前期费",25,"根据基金收入情况及项目进度，调减相关资金。"]
[60,"创新大道（规划道路11—学院路）绿化工程费及前期费",40,"根据基金收入情况及项目进度，调减相关资金。"]
[61,"同济道（龙泽路—工农路）等4条道路绿化工程费及前期费",20,"根据基金收入情况及项目进度，调减相关资金。"]
[62,"李各庄河道治理工程",380,"根据基金收入情况及项目进度，调减相关资金。"]
[63,"检测试验费",300,"根据基金收入情况及项目进度，调减相关资金。"]
[64,"卫国路（庆北道-大庆道）段新建环网柜工程",34,"根据基金收入情况及项目进度，调减相关资金。"]
[65,"庆丰道（建设北路—建设东路）电缆隧道工程施工一标段",287,"根据基金收入情况及项目进度，调减相关资金。"]
[66,"北安道（龙泽路-规划道路10）贾变518线路改造工程",30,"根据基金收入情况及项目进度，调减相关资金。"]
[67,"文明城专项整治工程",140,"根据基金收入情况及项目进度，调减相关资金。"]
[68,"高新道及周边区域综合整治工程及前期费",90,"根据基金收入情况及项目进度，调减相关资金。"]
[69,"2022年高新区清水润城公园及河道亮化工程",200,"根据基金收入情况及项目进度，调减相关资金。"]
[70,"高新区规划道路3（建设路-建设东路）道路两侧高填方护坡工程",45,"根据基金收入情况及项目进度，调减相关资金。"]
[71,"新城子158户线路改造",64,"根据基金收入情况及项目进度，调减相关资金。"]
[72,"高新区学院路（新科街-庆北道）西侧绿荫停车场工程及前期费",52,"根据基金收入情况及项目进度，调减相关资金。"]
[73,"综合服务中心",50,"项目未实施，予以调减。"]
[74,"京唐智慧港自来水二期用地绿化项目",78,"根据基金收入情况及项目进度，调减相关资金。"]
[75,"京唐智慧港自来水二期用地、土建项目",79,"根据基金收入情况及项目进度，调减相关资金。"]
[76,"唐丰路派出所建设项目",500,"根据基金收入情况及项目进度，调减相关资金。"]
[77,"智慧平安社区建设及维护费",1156,"根据基金收入情况及项目进度，调减相关资金。"]